fUSD/lending_fUSD_20240104
["ID","MTS","AMOUNT","RATE_DAILY","PERIOD"]
[310220732,1704402706590,-623.16,0.00035616,2]
[310220733,1704402706601,-500.0,0.00035616,2]
[310220734,1704402706611,-1530.15,0.00035616,2]
[310220735,1704402706621,-2181.99,0.00035616,2]
[310220736,1704402706631,-500.0,0.00035616,2]
[310220737,1704402706641,-3262.68,0.00035616,2]
[310220738,1704402706651,-1391.97,0.00035616,2]
[310220739,1704402706661,-756.79,0.00035616,2]
[310220740,1704402706671,-631.36,0.00035616,2]
[310220741,1704402706681,-618.7,0.00035616,2]
[310220742,1704402706691,-1812.71,0.00035616,2]
[310220743,1704402706701,-398.33718219,0.00035616,2]
[310220744,1704402706711,-500.0,0.00035616,2]
[310220745,1704402706721,-500.0,0.00035616,2]
[310220746,1704402706731,-500.0,0.00035616,2]
[310220747,1704402706742,-575.96807273,0.00035616,2]
[310220748,1704402706752,-927.7,0.00035616,2]
[310220749,1704402706763,-709.7,0.00035616,2]
[310220750,1704402706773,-1742.56,0.00035616,2]
[310220751,1704402706783,-7042.65,0.00035616,2]
[310220752,1704402706793,-500.0,0.00035616,2]
[310220753,1704402706803,-500.0,0.00035616,2]
[310220754,1704402706813,-500.0,0.00035616,2]
[310220755,1704402706822,-500.0,0.00035616,2]
[310220756,1704402706833,-500.0,0.00035616,2]
[310220757,1704402706843,-500.0,0.00035616,2]
[310220758,1704402706853,-910.81,0.00035616,2]
[310220759,1704402706863,-500.0,0.00035616,2]
[310220760,1704402706873,-500.0,0.00035616,2]
[310220761,1704402706883,-500.0,0.00035616,2]
[310220762,1704402706893,-500.0,0.00035616,2]
[310220763,1704402706903,-1009.55,0.00035616,2]
[310220764,1704402706913,-500.0,0.00035616,2]
[310220765,1704402706922,-1739.77,0.00035616,2]
[310220766,1704402706932,-500.0,0.00035616,2]
[310220767,1704402706942,-500.0,0.00035616,2]
[310220768,1704402706952,-500.0,0.00035616,2]
[310220769,1704402706962,-500.0,0.00035616,2]
[310220770,1704402706972,-500.0,0.00035616,2]
[310220771,1704402706982,-500.0,0.00035616,2]
[310220772,1704402706993,-500.0,0.00035616,2]
[310220773,1704402707003,-1282.1,0.00035616,2]
[310220774,1704402707012,-6408.05,0.00035616,2]
[310220775,1704402707022,-500.0,0.00035616,2]
[310220776,1704402707032,-2129.19,0.00035616,2]
[310220777,1704402707043,-1154.96,0.00035616,2]
[310220778,1704402707053,-500.0,0.00035616,2]
[310220779,1704402707062,-1729.84,0.00035616,2]
[310220780,1704402707073,-500.0,0.00035616,2]
[310220781,1704402707084,-500.0,0.00035616,2]
[310220782,1704402707094,-500.0,0.00035616,2]
[310220783,1704402707104,-500.0,0.00035616,2]
[310220784,1704402707114,-913.73,0.00035616,2]
[310220785,1704402707124,-500.0,0.00035616,2]
[310220786,1704402707134,-500.0,0.00035616,2]
[310220787,1704402707143,-500.0,0.00035616,2]
[310220788,1704402707153,-4842.28,0.00035616,2]
[310220789,1704402707164,-2264.53,0.00035616,2]
[310220790,1704402707174,-500.0,0.00035616,2]
[310220791,1704402707184,-311.7546723,0.00035616,2]
[310220792,1704402707194,-500.0,0.00035616,2]
[310220793,1704402707204,-500.0,0.00035616,2]
[310220794,1704402707220,-2281.55,0.00035616,2]
[310220795,1704402707231,-500.0,0.00035616,2]
[310220796,1704402707242,-500.0,0.00035616,2]
[310220797,1704402707251,-500.0,0.00035616,2]
[310220798,1704402707261,-500.0,0.00035616,2]
[310220799,1704402707272,-500.0,0.00035616,2]
[310220800,1704402707282,-500.0,0.00035616,2]
[310220801,1704402707291,-513.71691248,0.00035616,2]
[310220802,1704402707301,-500.0,0.00035616,2]
[310220803,1704402707311,-539.42,0.00035616,2]
[310220804,1704402707321,-983.89,0.00035616,2]
[310220805,1704402707332,-500.0,0.00035616,2]
[310220806,1704402707342,-500.0,0.00035616,2]
[310220807,1704402707352,-500.0,0.00035616,2]
[310220808,1704402707362,-500.0,0.00035616,2]
[310220809,1704402707373,-500.0,0.00035616,2]
[310220810,1704402707384,-1154.67,0.00035616,2]
[310220811,1704402707395,-599.93,0.00035616,2]
[310220812,1704402707406,-616.54,0.00035616,2]
[310220813,1704402707416,-500.0,0.00035616,2]
[310220814,1704402707425,-1525.72,0.00035616,2]
[310220815,1704402707439,-613.63,0.00035616,2]
[310220816,1704402707449,-637.93,0.00035616,2]
[310220817,1704402707461,-500.0,0.00035616,2]
[310220818,1704402707472,-500.0,0.00035616,2]
[310220819,1704402707482,-500.0,0.00035616,2]
[310220820,1704402707494,-878.05,0.00035616,2]
[310220821,1704402707505,-500.0,0.00035616,2]
[310220822,1704402707515,-902.92,0.00035616,2]
[310220823,1704402707526,-269.78,0.00035616,2]
[310220824,1704402707536,-500.0,0.00035616,2]
[310220825,1704402707547,-500.0,0.00035616,2]
[310220826,1704402707558,-500.0,0.00035616,2]
[310220827,1704402707568,-589.16,0.00035616,2]
[310220828,1704402707579,-500.0,0.00035616,2]
[310220829,1704402707589,-500.0,0.00035616,2]
[310220830,1704402707599,-500.0,0.00035616,2]
[310220831,1704402707609,-500.0,0.00035616,2]
[310220832,1704402707620,-500.0,0.00035616,2]
[310220833,1704402707630,-984.56,0.00035616,2]
[310220834,1704402707640,-500.0,0.00035616,2]
[310220835,1704402707650,-563.07,0.00035616,2]
[310220836,1704402707661,-500.0,0.00035616,2]
[310220837,1704402707672,-2695.69,0.00035616,2]
[310220838,1704402707682,-786.61,0.00035616,2]
[310220839,1704402707692,-1449.26,0.00035616,2]
[310220840,1704402707702,-6403.69,0.00035616,2]
[310220841,1704402707713,-565.56,0.00035616,2]
[310220842,1704402707724,-500.0,0.00035616,2]
[310220843,1704402707734,-500.0,0.00035616,2]
[310220844,1704402707746,-573.87,0.00035616,2]
[310220845,1704402707757,-500.0,0.00035616,2]
[310220846,1704402707768,-500.0,0.00035616,2]
[310220847,1704402707779,-750.62,0.00035616,2]
[310220848,1704402707789,-1503.12,0.00035616,2]
[310220849,1704402707800,-500.0,0.00035616,2]
[310220850,1704402707810,-500.0,0.00035616,2]
[310220851,1704402707820,-515.26,0.00035616,2]
[310220852,1704402707830,-500.0,0.00035616,2]
[310220853,1704402707841,-500.0,0.00035616,2]
[310220854,1704402707851,-500.0,0.00035616,2]
[310220855,1704402707861,-1352.57,0.00035616,2]
[310220856,1704402707871,-500.0,0.00035616,2]
[310220857,1704402707881,-4498.58,0.00035616,2]
[310220858,1704402707892,-1460.37,0.00035616,2]
[310220859,1704402707904,-647.5,0.00035616,2]
[310220860,1704402707914,-500.0,0.00035616,2]
[310220861,1704402707925,-500.0,0.00035616,2]
[310220862,1704402707935,-895.41,0.00035616,2]
[310220863,1704402707946,-500.0,0.00035616,2]
[310220864,1704402707956,-500.0,0.00035616,2]
[310220865,1704402707966,-500.0,0.00035616,2]
[310220866,1704402707978,-500.0,0.00035616,2]
[310220867,1704402707989,-500.0,0.00035616,2]
[310220868,1704402708000,-500.0,0.00035616,2]
[310220869,1704402708010,-500.0,0.00035616,2]
[310220870,1704402708021,-761.85,0.00035616,2]
[310220871,1704402708031,-500.0,0.00035616,2]
[310220872,1704402708041,-500.0,0.00035616,2]
[310220873,1704402708050,-2111.24,0.00035616,2]
[310220874,1704402708061,-500.0,0.00035616,2]
[310220875,1704402708072,-1731.46,0.00035616,2]
[310220876,1704402708083,-500.0,0.00035616,2]
[310220877,1704402708283,-928.81,0.00035616,2]
[310220878,1704402708293,-1937.57,0.00035616,2]
[310220879,1704402708303,-1123.24,0.00035616,2]
[310220880,1704402708314,-550.84,0.00035616,2]
[310220881,1704402708324,-500.0,0.00035616,2]
[310220882,1704402708334,-500.0,0.00035616,2]
[310220883,1704402708344,-500.0,0.00035616,2]
[310220884,1704402708354,-504.38,0.00035616,2]
[310220885,1704402708364,-1072.15,0.00035616,2]
[310220886,1704402708374,-729.82,0.00035616,2]
[310220887,1704402708385,-500.0,0.00035616,2]
[310220888,1704402708395,-500.0,0.00035616,2]
[310220889,1704402708405,-2257.92,0.00035616,2]
[310220890,1704402708415,-500.0,0.00035616,2]
[310220891,1704402708425,-1167.4,0.00035616,2]
[310220892,1704402708434,-831.43,0.00035616,2]
[310220893,1704402708444,-1414.25,0.00035616,2]
[310220894,1704402708454,-1040.38,0.00035616,2]
[310220895,1704402708463,-500.0,0.00035616,2]
[310220896,1704402708474,-500.0,0.00035616,2]
[310220897,1704402708484,-828.1,0.00035616,2]
[310220898,1704402708494,-500.0,0.00035616,2]
[310220899,1704402708504,-500.0,0.00035616,2]
[310220900,1704402708514,-500.0,0.00035616,2]
[310220901,1704402708524,-500.0,0.00035616,2]
[310220902,1704402708533,-500.0,0.00035616,2]
[310220903,1704402708543,-500.0,0.00035616,2]
[310220904,1704402708554,-678.15,0.00035616,2]
[310220905,1704402708564,-500.0,0.00035616,2]
[310220906,1704402708574,-500.0,0.00035616,2]
[310220907,1704402708584,-500.0,0.00035616,2]
[310220908,1704402708595,-470.64,0.00035616,2]
[310220909,1704402708605,-500.0,0.00035616,2]
[310220910,1704402708615,-500.0,0.00035616,2]
[310220911,1704402708624,-1448.36,0.00035616,2]
[310220912,1704402708635,-153.84,0.00035616,2]
[310220913,1704402708646,-150.0,0.00035616,2]
[310220914,1704402708657,-607.43039192,0.0003562,10]
[310220915,1704402708666,-607.43039192,0.0003562,10]
[310220916,1704402708677,-607.43039192,0.0003562,10]
[310220917,1704402708686,-607.43039192,0.0003562,10]
[310220918,1704402708697,-607.43039192,0.0003562,10]
[310220919,1704402708706,-607.43039192,0.0003562,10]
[310220920,1704402708716,-607.43039192,0.0003562,10]
[310220921,1704402708727,-607.43039192,0.0003562,10]
[310220922,1704402708738,-607.43039192,0.0003562,10]
[310220923,1704402708747,-607.43039192,0.0003562,10]
[310220924,1704402708758,-607.43039192,0.0003562,10]
[310220925,1704402708769,-607.43039192,0.0003562,10]
[310220926,1704402708779,-607.43039192,0.0003562,10]
[310220927,1704402708789,-607.43039192,0.0003562,10]
[310220928,1704402708799,-607.43039192,0.0003562,10]
[310220929,1704402708809,-607.43039192,0.0003562,10]
[310220930,1704402708819,-607.43039192,0.0003562,10]
[310220931,1704402708829,-607.43039192,0.0003562,10]
[310220932,1704402708839,-607.43039192,0.0003562,10]
[310220933,1704402708849,-607.43,0.0003562,10]
[310220934,1704402708859,-179.47525135,0.0003562,10]
[310220935,1704402708869,-179.47525135,0.0003562,10]
[310220936,1704402708879,-179.47525135,0.0003562,10]
[310220937,1704402708889,-179.47525135,0.0003562,10]
[310220938,1704402708899,-179.47525135,0.0003562,10]
[310220939,1704402708908,-179.47525135,0.0003562,10]
[310220940,1704402708918,-179.47525135,0.0003562,10]
[310220941,1704402708927,-179.47525135,0.0003562,10]
[310220942,1704402708937,-179.47525135,0.0003562,10]
[310220943,1704402708947,-179.47525135,0.0003562,10]
[310220944,1704402708957,-179.47525135,0.0003562,10]
[310220945,1704402708967,-179.47525135,0.0003562,10]
[310220946,1704402708977,-179.47525135,0.0003562,10]
[310220947,1704402708986,-179.47525135,0.0003562,10]
[310220948,1704402708996,-179.47525135,0.0003562,10]
[310220950,1704402709006,-179.47525135,0.0003562,10]
[310220951,1704402709015,-179.47525135,0.0003562,10]
[310220952,1704402709025,-179.47525135,0.0003562,10]
[310220953,1704402709034,-179.47525135,0.0003562,10]
[310220954,1704402709044,-179.47,0.0003562,10]
[310220955,1704402709054,-582.57594897,0.0003562,10]
[310220956,1704402709064,-582.57594897,0.0003562,10]
[310220957,1704402709075,-582.57594897,0.0003562,10]
[310220958,1704402709084,-582.57594897,0.0003562,10]
[310220959,1704402709094,-582.57594897,0.0003562,10]
[310220960,1704402709103,-582.57594897,0.0003562,10]
[310220961,1704402709114,-582.57594897,0.0003562,10]
[310220962,1704402709123,-582.57594897,0.0003562,10]
[310220963,1704402709133,-582.57594897,0.0003562,10]
[310220964,1704402709144,-582.57594897,0.0003562,10]
[310220965,1704402709155,-582.57594897,0.0003562,10]
[310220966,1704402709164,-582.57594897,0.0003562,10]
[310220967,1704402709174,-582.57594897,0.0003562,10]
[310220968,1704402709184,-582.57594897,0.0003562,10]
[310220969,1704402709194,-582.57594897,0.0003562,10]
[310220970,1704402709204,-582.57594897,0.0003562,10]
[310220971,1704402709213,-582.57594897,0.0003562,10]
[310220972,1704402709224,-582.57594897,0.0003562,10]
[310220973,1704402709234,-582.57594897,0.0003562,10]
[310220974,1704402709245,-582.57,0.0003562,10]
[310220975,1704402709254,-1028.6817391,0.0003562,10]
[310220976,1704402709263,-1028.6817391,0.0003562,10]
[310220977,1704402709273,-1028.6817391,0.0003562,10]
[310220978,1704402709283,-1028.6817391,0.0003562,10]
[310220979,1704402709292,-1028.6817391,0.0003562,10]
[310220980,1704402709301,-1028.6817391,0.0003562,10]
[310220981,1704402709311,-1028.6817391,0.0003562,10]
[310220982,1704402709321,-1028.6817391,0.0003562,10]
[310220983,1704402709331,-1028.6817391,0.0003562,10]
[310220984,1704402709340,-1028.6817391,0.0003562,10]
[310220985,1704402709350,-1028.6817391,0.0003562,10]
[310220986,1704402709361,-1028.6817391,0.0003562,10]
[310220987,1704402709372,-1028.6817391,0.0003562,10]
[310220988,1704402709382,-1028.6817391,0.0003562,10]
[310220989,1704402709392,-1028.6817391,0.0003562,10]
[310220990,1704402709402,-1028.6817391,0.0003562,10]
[310220991,1704402709414,-1028.6817391,0.0003562,10]
[310220992,1704402709424,-1028.6817391,0.0003562,10]
[310220993,1704402709433,-1028.6817391,0.0003562,10]
[310220994,1704402709443,-1028.68,0.0003562,10]
[310220995,1704402709453,-902.33987137,0.0003562,10]
[310220996,1704402709463,-902.33987137,0.0003562,10]
[310220997,1704402709473,-902.33987137,0.0003562,10]
[310220998,1704402709483,-902.33987137,0.0003562,10]
[310220999,1704402709493,-902.33987137,0.0003562,10]
[310221000,1704402709504,-902.33987137,0.0003562,10]
[310221001,1704402709515,-902.33987137,0.0003562,10]
[310221002,1704402709524,-902.33987137,0.0003562,10]
[310221003,1704402709533,-902.33987137,0.0003562,10]
[310221004,1704402709543,-902.33987137,0.0003562,10]
[310221005,1704402709553,-902.33987137,0.0003562,10]
[310221006,1704402709562,-902.33987137,0.0003562,10]
[310221007,1704402709573,-902.33987137,0.0003562,10]
[310221008,1704402709582,-902.33987137,0.0003562,10]
[310221009,1704402709593,-902.33987137,0.0003562,10]
[310221010,1704402709603,-902.33987137,0.0003562,10]
[310221011,1704402709613,-902.33987137,0.0003562,10]
[310221012,1704402709623,-902.33987137,0.0003562,10]
[310221013,1704402709633,-902.33987137,0.0003562,10]
[310221014,1704402709643,-902.33,0.0003562,10]
[310221015,1704402709653,-191.28567206,0.0003563,14]
[310221016,1704402709662,-151.36920845,0.00035654,14]
[310221017,1704402709672,-191.28567206,0.00035676,14]
[310221018,1704402709681,-516.06,0.00035682,2]
[310221019,1704402709692,-224.3157471,0.00035686,14]
[310221020,1704402709701,-158.38677459,0.00035697,14]
[310221021,1704402709711,-4569.84,0.000357,7]
[310221022,1704402709721,-224.3157471,0.0003572,14]
[310221023,1704402709731,-191.28567206,0.00035721,14]
[310221024,1704402709742,-800.24,0.00035781,2]
[310221025,1704402709751,-3404.28,0.00035798,2]
[310221026,1704402709762,-224.3157471,0.00035799,14]
[310221027,1704402709772,-3000.0,0.000358,5]
[310221028,1704402709782,-150.0,0.000358,25]
[310221029,1704402709791,-191.28567206,0.00035802,14]
[310221030,1704402709802,-3000.0,0.0003581,5]
[310221031,1704402709812,-150.0,0.0003581,2]
[310221032,1704402709821,-3000.0,0.0003582,5]
[310221033,1704402709831,-3000.0,0.0003583,5]
[310221034,1704402709841,-5027.939068,0.0003584,5]
[310221035,1704402709850,-152.79793013,0.00035854,14]
[310221036,1704402709860,-151.36920845,0.00035862,14]
[310221037,1704402709870,-341.69004625,0.00035889,2]
[310221038,1704402709879,-403.80330725,0.00035889,2]
[310221039,1704402709890,-466.29019262,0.00035889,2]
[310221040,1704402709900,-434.3711285,0.00035889,2]
[310221041,1704402709909,-617.73908664,0.00035889,2]
[310221042,1704402709919,-500.0,0.0003589,2]
[310221043,1704402709929,-500.0,0.0003589,2]
[310221044,1704402709940,-500.0,0.0003589,2]
[310221045,1704402709950,-500.0,0.0003589,2]
[310221046,1704402709959,-554.75,0.0003589,2]
[310221047,1704402709968,-500.0,0.0003589,2]
[310221048,1704402709977,-500.0,0.0003589,2]
[310221049,1704402709986,-500.0,0.0003589,2]
[310221050,1704402709996,-327.59699138,0.0003589,2]
[310221051,1704402710006,-500.0,0.0003589,2]
[310221052,1704402710017,-500.0,0.0003589,2]
[310221053,1704402710025,-500.0,0.0003589,2]
[310221054,1704402710035,-500.0,0.0003589,2]
[310221055,1704402710044,-500.0,0.0003589,2]
[310221056,1704402710053,-500.0,0.0003589,2]
[310221057,1704402710062,-500.0,0.0003589,2]
[310221058,1704402710071,-500.0,0.0003589,2]
[310221059,1704402710080,-500.0,0.0003589,2]
[310221060,1704402710089,-500.0,0.0003589,2]
[310221061,1704402710098,-500.0,0.0003589,2]
[310221062,1704402710107,-500.0,0.0003589,2]
[310221063,1704402710116,-500.0,0.0003589,2]
[310221064,1704402710125,-500.0,0.0003589,2]
[310221065,1704402710134,-500.0,0.0003589,2]
[310221066,1704402710143,-500.0,0.0003589,2]
[310221067,1704402710152,-500.0,0.0003589,2]
[310221068,1704402710162,-1160.79,0.0003589,2]
[310221069,1704402710171,-500.0,0.0003589,2]
[310221070,1704402710180,-500.0,0.0003589,2]
[310221071,1704402710189,-500.0,0.0003589,2]
[310221072,1704402710198,-738.09,0.0003589,2]
[310221073,1704402710207,-500.0,0.0003589,2]
[310221074,1704402710216,-500.0,0.0003589,2]
[310221075,1704402710225,-500.0,0.0003589,2]
[310221076,1704402710234,-807.57,0.0003589,2]
[310221077,1704402710244,-500.0,0.0003589,2]
[310221078,1704402710253,-500.0,0.0003589,2]
[310221079,1704402710262,-500.0,0.0003589,2]
[310221080,1704402710272,-500.0,0.0003589,2]
[310221081,1704402710281,-527.72,0.0003589,2]
[310221082,1704402710290,-687.6,0.0003589,2]
[310221083,1704402710299,-500.0,0.0003589,2]
[310221084,1704402710309,-500.0,0.0003589,2]
[310221085,1704402710319,-500.0,0.0003589,2]
[310221086,1704402710328,-500.0,0.0003589,2]
[310221087,1704402710337,-500.0,0.0003589,2]
[310221088,1704402710346,-500.0,0.0003589,2]
[310221089,1704402710356,-500.0,0.0003589,2]
[310221090,1704402710366,-500.0,0.0003589,2]
[310221091,1704402710375,-500.0,0.0003589,2]
[310221092,1704402710384,-413.37,0.0003589,2]
[310221093,1704402710393,-500.0,0.0003589,2]
[310221094,1704402710403,-500.0,0.0003589,2]
[310221095,1704402710413,-602.44,0.0003589,2]
[310221096,1704402710421,-501.87690378,0.0003589,2]
[310221097,1704402710430,-500.0,0.0003589,2]
[310221098,1704402710440,-660.7,0.0003589,2]
[310221099,1704402710453,-150.79889266,0.0003589,2]
[310221100,1704402710462,-722.69,0.0003589,2]
[310221101,1704402710472,-598.95,0.0003589,2]
[310221102,1704402710481,-500.0,0.0003589,2]
[310221103,1704402710491,-541.66,0.0003589,2]
[310221104,1704402710501,-500.0,0.0003589,2]
[310221105,1704402710511,-500.0,0.0003589,2]
[310221106,1704402710521,-505.83,0.0003589,2]
[310221107,1704402710531,-500.0,0.0003589,2]
[310221108,1704402710541,-500.0,0.0003589,2]
[310221109,1704402710551,-500.0,0.0003589,2]
[310221110,1704402710560,-500.0,0.0003589,2]
[310221111,1704402710570,-500.0,0.0003589,2]
[310221112,1704402710580,-500.0,0.0003589,2]
[310221113,1704402710590,-500.0,0.0003589,2]
[310221114,1704402710600,-718.72,0.0003589,2]
[310221115,1704402710684,-680.79,0.0003589,2]
[310221116,1704402710694,-500.0,0.0003589,2]
[310221117,1704402710703,-486.61074825,0.0003589,2]
[310221118,1704402710712,-500.0,0.0003589,2]
[310221119,1704402710721,-1621.27,0.0003589,2]
[310221120,1704402710730,-500.0,0.0003589,2]
[310221121,1704402710740,-500.0,0.0003589,2]
[310221122,1704402710749,-500.0,0.0003589,2]
[310221123,1704402710759,-738.09,0.0003589,2]
[310221124,1704402710768,-519.11,0.0003589,2]
[310221125,1704402710777,-500.0,0.0003589,2]
[310221126,1704402710787,-754.73,0.0003589,2]
[310221127,1704402710797,-578.29,0.0003589,2]
[310221128,1704402710806,-500.0,0.0003589,2]
[310221129,1704402710815,-500.0,0.0003589,2]
[310221130,1704402710824,-500.0,0.0003589,2]
[310221131,1704402710833,-500.0,0.0003589,2]
[310221132,1704402710842,-947.06,0.0003589,2]
[310221133,1704402710851,-1076.04,0.0003589,2]
[310221134,1704402710861,-500.0,0.0003589,2]
[310221135,1704402710870,-541.45,0.0003589,2]
[310221136,1704402710879,-519.94,0.0003589,2]
[310221137,1704402710888,-500.0,0.0003589,2]
[310221138,1704402710897,-570.54,0.0003589,2]
[310221139,1704402710907,-596.45,0.0003589,2]
[310221140,1704402710916,-917.54,0.0003589,2]
[310221141,1704402710925,-203.67320068,0.0003589,2]
[310221142,1704402710934,-422.46266422,0.0003589,2]
[310221143,1704402710943,-581.17491463,0.0003589,2]
[310221144,1704402710952,-639.13,0.0003589,2]
[310221145,1704402710961,-500.0,0.0003589,2]
[310221146,1704402710970,-774.28,0.0003589,2]
[310221147,1704402710979,-500.0,0.0003589,2]
[310221148,1704402710988,-642.46,0.0003589,2]
[310221149,1704402710999,-500.0,0.0003589,2]
[310221150,1704402711009,-665.84,0.0003589,2]
[310221151,1704402711018,-500.0,0.0003589,2]
[310221152,1704402711026,-500.0,0.0003589,2]
[310221153,1704402711035,-500.0,0.0003589,2]
[310221154,1704402711044,-500.0,0.0003589,2]
[310221155,1704402711053,-500.0,0.0003589,2]
[310221156,1704402711062,-500.0,0.0003589,2]
[310221157,1704402711071,-564.52,0.0003589,2]
[310221158,1704402711081,-520.83,0.0003589,2]
[310221159,1704402711089,-1863.96,0.0003589,2]
[310221160,1704402711099,-500.0,0.0003589,2]
[310221161,1704402711108,-500.0,0.0003589,2]
[310221162,1704402711117,-533.03,0.0003589,2]
[310221163,1704402711125,-1044.47,0.0003589,2]
[310221164,1704402711134,-531.47,0.0003589,2]
[310221165,1704402711143,-564.43,0.0003589,2]
[310221166,1704402711152,-1039.05,0.0003589,2]
[310221167,1704402711161,-791.55,0.0003589,2]
[310221168,1704402711170,-1245.41,0.0003589,2]
[310221169,1704402711179,-757.45,0.0003589,2]
[310221170,1704402711188,-521.07,0.0003589,2]
[310221171,1704402711197,-162.01,0.0003589,2]
[310221172,1704402711205,-663.54,0.0003589,2]
[310221173,1704402711214,-988.41,0.0003589,2]
[310221174,1704402711223,-1253.45,0.0003589,2]
[310221175,1704402711232,-623.24,0.0003589,2]
[310221176,1704402711243,-1071.01,0.0003589,2]
[310221177,1704402711252,-500.0,0.0003589,2]
[310221178,1704402711260,-1080.17,0.0003589,2]
[310221179,1704402711269,-500.0,0.0003589,2]
[310221180,1704402711278,-500.0,0.0003589,2]
[310221181,1704402711288,-2123.54,0.0003589,2]
[310221182,1704402711297,-1443.74,0.0003589,2]
[310221183,1704402711306,-500.0,0.0003589,2]
[310221184,1704402711315,-500.0,0.0003589,2]
[310221185,1704402711325,-500.0,0.0003589,2]
[310221186,1704402711334,-1276.68,0.0003589,2]
[310221187,1704402711343,-500.0,0.0003589,2]
[310221188,1704402711351,-500.0,0.0003589,2]
[310221189,1704402711360,-500.0,0.0003589,2]
[310221190,1704402711370,-500.0,0.0003589,2]
[310221191,1704402711379,-500.0,0.0003589,2]
[310221192,1704402711388,-500.0,0.0003589,2]
[310221193,1704402711397,-500.0,0.0003589,2]
[310221194,1704402711408,-500.0,0.0003589,2]
[310221195,1704402711418,-2290.92,0.0003589,2]
[310221196,1704402711429,-500.0,0.0003589,2]
[310221197,1704402711439,-5464.43,0.0003589,2]
[310221198,1704402711449,-1286.86,0.0003589,2]
[310221199,1704402711459,-543.96,0.0003589,2]
[310221200,1704402711469,-623.16,0.0003589,2]
[310221201,1704402711478,-500.0,0.0003589,2]
[310221202,1704402711487,-1530.15,0.0003589,2]
[310221203,1704402711499,-2181.99,0.0003589,2]
[310221204,1704402711509,-500.0,0.0003589,2]
[310221205,1704402711518,-3262.68,0.0003589,2]
[310221206,1704402711528,-1391.97,0.0003589,2]
[310221207,1704402711538,-756.79,0.0003589,2]
[310221208,1704402711547,-618.7,0.0003589,2]
[310221209,1704402711556,-1812.71,0.0003589,2]
[310221210,1704402711565,-500.0,0.0003589,2]
[310221211,1704402711575,-500.0,0.0003589,2]
[310221212,1704402711583,-500.0,0.0003589,2]
[310221213,1704402711592,-927.7,0.0003589,2]
[310221214,1704402711602,-709.7,0.0003589,2]
[310221215,1704402711611,-7042.65,0.0003589,2]
[310221216,1704402711621,-500.0,0.0003589,2]
[310221217,1704402711630,-1742.56,0.0003589,2]
[310221218,1704402711639,-500.0,0.0003589,2]
[310221219,1704402711649,-500.0,0.0003589,2]
[310221220,1704402711659,-500.0,0.0003589,2]
[310221221,1704402711668,-500.0,0.0003589,2]
[310221222,1704402711678,-500.0,0.0003589,2]
[310221223,1704402711688,-910.81,0.0003589,2]
[310221224,1704402711697,-500.0,0.0003589,2]
[310221225,1704402711707,-500.0,0.0003589,2]
[310221226,1704402711716,-500.0,0.0003589,2]
[310221227,1704402711725,-500.0,0.0003589,2]
[310221228,1704402711735,-1009.55,0.0003589,2]
[310221229,1704402711745,-500.0,0.0003589,2]
[310221230,1704402711754,-1739.77,0.0003589,2]
[310221231,1704402711766,-500.0,0.0003589,2]
[310221232,1704402711775,-500.0,0.0003589,2]